bitfinex-derivatives/quotes_SOLF0:USTF0_20250426
["timestamp","ask_amount","ask_price","bid_price","bid_amount"]
[1745664272819,6.6776,149.71,149.68,11.88897093]
[1745664273115,6.6776,149.71,149.69,5.21027093]
[1745664273815,6.6778,149.7,149.69,5.21027093]
[1745664274215,6.6776,149.71,149.69,5.21027093]
[1745664274514,24.3,149.72,149.69,5.21027093]
[1745664274811,24.3,149.72,149.68,5.21027093]
[1745664276019,29.51027093,149.72,149.68,5.21027093]
[1745664276318,6.6779,149.7,149.68,5.21027093]
[1745664276518,6.6779,149.7,149.67,11.88927093]
[1745664282221,6.6779,149.7,149.68,5.21027093]
[1745664282922,6.6776,149.71,149.69,5.21027093]
[1745664283525,30.9772,149.72,149.69,5.21027093]
[1745664284019,6.6772,149.72,149.69,5.21027093]
[1745664284324,29.49027093,149.77,149.72,6.6767]
[1745664284525,29.49027093,149.77,149.73,5.21027093]
[1745664284720,6.6753,149.76,149.73,5.21027093]
[1745664285825,6.6753,149.76,149.73,11.88677093]
[1745664286026,6.6753,149.76,149.73,5.21027093]
[1745664287229,6.6757,149.75,149.73,5.21027093]
[1745664287428,6.6757,149.75,149.72,11.88697093]
[1745664287925,5.21027093,149.75,149.71,11.88757093]
[1745664288129,5.21027093,149.74,149.7,5.21027093]
[1745664288428,11.88667093,149.74,149.71,6.6774]
[1745664288730,5.21027093,149.74,149.7,5.21027093]
[1745664289930,6.6765,149.73,149.7,11.88777093]
[1745664294742,6.6766,149.73,149.7,5.21027093]
[1745664295236,5.21027093,149.74,149.69,24.28]
[1745664295441,5.21027093,149.74,149.69,5.21027093]
[1745664296152,7.30837093,149.76,149.71,5.21027093]
[1745664296443,2.0981,149.76,149.73,5.21027093]
[1745664296745,6.6759,149.75,149.73,5.21027093]
[1745664296940,6.6759,149.75,149.72,5.21027093]
[1745664299247,6.6761,149.74,149.72,5.21027093]
[1745664299446,7.30837093,149.76,149.72,11.88717093]
[1745664300246,6.6757,149.75,149.72,11.88717093]
[1745664300747,6.6757,149.75,149.72,5.21027093]
[1745664304144,6.6757,149.75,149.72,11.88717093]
[1745664304346,6.6757,149.75,149.72,5.21027093]
[1745664305248,6.6757,149.75,149.72,11.88717093]
[1745664306146,6.6757,149.75,149.72,5.21027093]
[1745664308152,6.6757,149.75,149.73,5.21027093]
[1745664308450,6.6757,149.75,149.72,5.21027093]
[1745664309355,6.6761,149.74,149.72,5.21027093]
[1745664310552,6.6758,149.75,149.72,5.21027093]
[1745664311352,6.6758,149.75,149.72,11.88717093]
[1745664313957,6.6758,149.75,149.73,5.21027093]
[1745664317055,8.7735,149.76,149.73,5.21027093]
[1745664318255,6.6757,149.75,149.73,5.21027093]
[1745664321460,6.6757,149.75,149.72,6.6769]
[1745664322467,5.21027093,149.75,149.67,24.26]
[1745664322958,5.21027093,149.75,149.71,5.21027093]
[1745664323266,11.88627093,149.75,149.71,11.88737093]
[1745664323562,2.0981,149.76,149.71,11.88737093]
[1745664324563,6.6762,149.74,149.71,11.88737093]
[1745664324864,2.0981,149.76,149.72,6.6768]
[1745664325358,2.0981,149.76,149.71,5.21027093]
[1745664325562,5.21027093,149.75,149.71,5.21027093]
[1745664325759,5.21027093,149.73,149.67,24.26]
[1745664326066,5.21027093,149.73,149.66,13.86427093]
[1745664326067,11.88837093,149.7,149.66,13.86427093]
[1745664326361,6.6786,149.69,149.65,5.21027093]
[1745664326561,5.21027093,149.7,149.66,5.21027093]
[1745664327064,11.88847093,149.7,149.66,5.21027093]
[1745664327262,11.88847093,149.7,149.66,11.88987093]
[1745664328263,11.88767093,149.71,149.67,11.88947093]
[1745664330861,6.678,149.7,149.67,11.88947093]
[1745664331363,5.21027093,149.71,149.67,5.21027093]
[1745664331565,5.21027093,149.7,149.67,5.21027093]
[1745664332263,6.6783,149.69,149.67,5.21027093]
[1745664333269,11.88827093,149.7,149.67,11.88937093]
[1745664333467,6.678,149.7,149.67,11.88937093]
[1745664334369,11.88787093,149.71,149.67,11.88937093]
[1745664334565,11.88787093,149.71,149.68,6.6786]
[1745664334868,5.21027093,149.71,149.67,5.21027093]
[1745664335466,6.678,149.7,149.67,11.88917093]
[1745664336563,6.6783,149.69,149.67,5.21027093]
[1745664337268,6.678,149.7,149.67,11.88947093]
[1745664338770,29.47027093,149.73,149.68,5.21027093]
[1745664338970,29.47027093,149.73,149.69,5.21027093]
[1745664339268,5.21027093,149.72,149.68,5.21027093]
[1745664340070,5.21027093,149.72,149.68,11.88867093]
[1745664340267,5.21027093,149.71,149.68,6.6784]
[1745664340471,11.88797093,149.71,149.68,6.6784]
[1745664342169,6.6779,149.7,149.67,11.88937093]
[1745664343872,6.6779,149.7,149.67,5.21027093]
[1745664344070,6.6783,149.69,149.66,5.21027093]
[1745664344870,11.88827093,149.7,149.67,6.6792]
[1745664346374,6.678,149.7,149.67,11.88947093]
[1745664349072,6.678,149.7,149.67,6.6792]
[1745664349278,6.678,149.7,149.67,11.88947093]
[1745664350374,24.26,149.73,149.68,5.21027093]
[1745664350577,24.26,149.73,149.69,5.21027093]
[1745664350870,5.21027093,149.72,149.68,5.21027093]
[1745664351077,11.88797093,149.71,149.67,11.88917093]
[1745664351273,5.21027093,149.71,149.67,5.21027093]
[1745664351475,5.21027093,149.7,149.66,5.21027093]
[1745664351774,11.88847093,149.7,149.66,11.88957093]
[1745664351973,5.21027093,149.7,149.66,11.88957093]
[1745664352379,6.6783,149.69,149.66,11.88957093]
[1745664352773,5.21027093,149.7,149.67,6.6791]
[1745664353779,5.21027093,149.71,149.67,6.6791]
[1745664354280,6.6781,149.7,149.67,11.88937093]
[1745664355181,11.88787093,149.71,149.67,11.88937093]
[1745664355481,6.6776,149.71,149.68,5.21027093]
[1745664355677,5.21027093,149.72,149.68,5.21027093]
[1745664355678,11.88737093,149.72,149.68,5.21027093]
[1745664355877,6.6771,149.72,149.68,5.21027093]
[1745664356178,6.6771,149.72,149.69,11.88847093]
[1745664359385,36.14697093,149.73,149.69,11.88847093]
[1745664360185,36.14697093,149.73,149.7,6.6778]
[1745664363390,29.47027093,149.73,149.69,5.21027093]
[1745664363578,29.47027093,149.73,149.7,5.21027093]
[1745664363787,5.21027093,149.74,149.7,5.21027093]
[1745664364790,5.21027093,149.75,149.71,5.21027093]
[1745664365083,31.54837093,149.76,149.71,5.21027093]
[1745664365789,6.6759,149.75,149.72,6.6769]
[1745664366089,11.88617093,149.75,149.72,6.6769]
[1745664366387,6.6761,149.74,149.71,11.88747093]
[1745664367791,6.6761,149.74,149.71,6.6772]
[1745664369887,6.6761,149.74,149.72,6.6769]
[1745664370188,11.88597093,149.75,149.72,6.6769]
[1745664370798,6.6761,149.74,149.71,6.6772]
[1745664371293,11.88637093,149.74,149.71,6.6772]
[1745664371593,5.21027093,149.74,149.72,6.6769]
[1745664371893,11.88607093,149.75,149.72,6.6769]
[1745664372894,38.22377093,149.76,149.73,6.6765]
[1745664376491,6.6746,149.78,149.74,5.21027093]
[1745664376693,6.6746,149.78,149.75,5.21027093]
[1745664376892,6.6746,149.78,149.74,5.21027093]
[1745664379097,5.21027093,149.76,149.72,5.21027093]
[1745664379290,6.6763,149.74,149.71,29.43027093]
[1745664379598,5.21027093,149.74,149.69,5.21027093]
[1745664380300,6.6766,149.73,149.7,6.6776]
[1745664380598,5.21027093,149.74,149.7,6.6776]
[1745664380787,6.677,149.72,149.69,5.21027093]
[1745664380991,11.88727093,149.72,149.68,31.49857093]
[1745664381487,11.88727093,149.72,149.68,38.17707093]
[1745664381796,6.6775,149.71,149.68,29.43027093]
[1745664382196,5.21027093,149.72,149.68,29.43027093]
[1745664382394,5.21027093,149.71,149.68,24.22]
[1745664382696,5.21027093,149.7,149.66,5.21027093]
[1745664382892,6.6785,149.69,149.66,5.21027093]
[1745664383093,5.21027093,149.7,149.66,5.21027093]
[1745664383292,5.21027093,149.69,149.65,29.43027093]
[1745664383491,6.6788,149.68,149.65,29.43027093]
[1745664383893,5.21027093,149.69,149.65,29.43027093]
[1745664384307,5.21027093,149.68,149.65,24.22]
[1745664384800,11.88907093,149.68,149.65,24.22]
[1745664386000,11.88907093,149.68,149.65,29.43027093]
[1745664386296,6.6798,149.66,149.62,30.9211]
[1745664386501,5.21027093,149.67,149.63,5.21027093]
[1745664386799,5.21027093,149.68,149.64,5.21027093]
[1745664387002,5.21027093,149.68,149.64,11.89077093]
[1745664387395,6.6786,149.69,149.66,5.21027093]
[1745664387599,5.21027093,149.71,149.67,5.21027093]
[1745664388305,6.6782,149.7,149.67,5.21027093]
[1745664388598,5.21027093,149.71,149.67,5.21027093]
[1745664388806,6.6775,149.71,149.67,11.88917093]
[1745664389304,29.43027093,149.72,149.67,11.88917093]
[1745664390306,6.6779,149.7,149.67,11.88917093]
[1745664391007,6.6774,149.71,149.68,6.6787]
[1745664391208,6.6774,149.71,149.68,11.88897093]
[1745664391707,6.6774,149.71,149.68,5.21027093]
[1745664392203,6.6779,149.7,149.68,5.21027093]
[1745664392510,6.6779,149.7,149.67,5.21027093]
[1745664392907,6.6784,149.69,149.66,5.21027093]
[1745664393109,5.21027093,149.71,149.66,5.21027093]
[1745664393911,6.6792,149.67,149.65,5.21027093]
[1745664394109,6.6792,149.67,149.64,5.21027093]
[1745664394410,5.21027093,149.7,149.65,5.21027093]
[1745664394610,5.21027093,149.7,149.63,24.24]
[1745664394805,5.21027093,149.7,149.66,5.21027093]
[1745664395013,6.6784,149.69,149.66,5.21027093]
[1745664395512,6.6781,149.7,149.67,5.21027093]
[1745664396006,5.21027093,149.71,149.67,5.21027093]
[1745664396412,6.6779,149.7,149.67,5.21027093]
[1745664396612,5.21027093,149.71,149.67,5.21027093]
[1745664397113,6.6779,149.7,149.67,5.21027093]
[1745664397615,6.6776,149.71,149.68,5.21027093]
[1745664397805,5.21027093,149.73,149.69,5.21027093]
[1745664398112,6.6772,149.72,149.69,5.21027093]
[1745664398309,5.21027093,149.73,149.68,5.21027093]
[1745664398502,5.21027093,149.72,149.68,5.21027093]
[1745664398705,6.6777,149.71,149.68,5.21027093]
[1745664399105,5.21027093,149.72,149.68,5.21027093]
[1745664399312,6.6774,149.72,149.68,11.88887093]
[1745664399612,5.21027093,149.74,149.7,5.21027093]
[1745664399813,6.6769,149.73,149.7,5.21027093]
[1745664400716,6.677,149.72,149.7,5.21027093]
[1745664403018,6.677,149.72,149.69,5.21027093]
[1745664403218,6.6775,149.71,149.69,5.21027093]
[1745664405521,6.6779,149.7,149.68,5.21027093]
[1745664405716,5.21027093,149.71,149.67,24.22]
[1745664406117,5.21027093,149.7,149.67,24.22]
[1745664406423,5.21027093,149.68,149.64,29.43027093]
[1745664406622,6.6796,149.67,149.64,29.43027093]
[1745664407122,6.6798,149.66,149.64,29.43027093]
[1745664408124,6.6793,149.67,149.64,29.43027093]
[1745664408319,6.6793,149.67,149.64,36.11067093]
[1745664408721,2.0138,149.7,149.64,36.11067093]
[1745664408928,6.6789,149.68,149.65,11.89007093]
[1745664411221,6.6789,149.68,149.66,5.21027093]
[1745664413925,2.0138,149.7,149.66,5.21027093]
[1745664414125,24.22,149.71,149.67,5.21027093]
[1745664414325,5.21027093,149.72,149.67,5.21027093]
[1745664414827,6.6781,149.7,149.67,5.21027093]
[1745664415027,5.21027093,149.71,149.67,5.21027093]
[1745664415328,6.6782,149.7,149.67,5.21027093]
[1745664416029,6.6783,149.69,149.67,5.21027093]
[1745664416223,5.21027093,149.7,149.65,11.89017093]
[1745664416424,5.21027093,149.69,149.65,11.89017093]
[1745664416723,6.679,149.68,149.65,11.89017093]
[1745664417528,6.679,149.68,149.65,5.21027093]
[1745664418829,6.679,149.68,149.65,11.89037093]
[1745664420132,6.679,149.68,149.65,5.21027093]
[1745664420630,6.679,149.68,149.66,5.21027093]
[1745664423237,6.6792,149.67,149.66,5.21027093]
[1745664423432,6.6792,149.67,149.65,5.21027093]
[1745664424430,5.21027093,149.66,149.6,28.2081]
[1745664424625,5.21027093,149.66,149.62,5.21027093]
[1745664424831,5.21027093,149.67,149.62,5.21027093]
[1745664425129,6.6804,149.65,149.62,5.21027093]
[1745664425427,5.21027093,149.67,149.63,5.21027093]
[1745664425632,6.6797,149.66,149.63,5.21027093]
[1745664425932,7.17707093,149.68,149.63,5.21027093]
[1745664426236,5.21027093,149.67,149.62,5.21027093]
[1745664426436,6.6804,149.65,149.62,5.21027093]
[1745664426737,5.21027093,149.67,149.62,5.21027093]
[1745664426935,5.21027093,149.66,149.62,5.21027093]
[1745664427137,6.6803,149.65,149.62,11.89157093]
[1745664427336,5.21027093,149.66,149.61,5.21027093]
[1745664427738,6.6808,149.64,149.61,11.89177093]
[1745664427933,6.6808,149.64,149.62,5.21027093]
[1745664428131,5.21027093,149.66,149.62,5.21027093]
[1745664428437,6.6804,149.65,149.62,11.89157093]
[1745664428636,5.21027093,149.66,149.62,5.21027093]
[1745664428841,6.6805,149.65,149.62,5.21027093]
[1745664429540,6.6806,149.64,149.62,5.21027093]
[1745664430134,6.6803,149.65,149.62,5.21027093]
[1745664430335,6.6803,149.65,149.62,11.89157093]
[1745664430634,5.21027093,149.66,149.63,5.21027093]
[1745664430635,6.68,149.66,149.63,5.21027093]
[1745664430939,6.68,149.66,149.63,11.89117093]
[1745664431739,6.68,149.66,149.6,28.2081]
[1745664431740,7.17707093,149.68,149.64,5.21027093]
[1745664431941,29.41027093,149.69,149.65,5.21027093]
[1745664432637,5.21027093,149.71,149.66,5.21027093]
[1745664432835,5.21027093,149.71,149.67,5.21027093]
[1745664433939,6.678,149.7,149.67,5.21027093]
[1745664434643,6.678,149.7,149.67,11.88937093]
[1745664435745,6.678,149.7,149.67,5.21027093]
[1745664436146,6.678,149.7,149.67,11.88937093]
[1745664436342,6.678,149.7,149.67,5.21027093]
[1745664437548,7.20517093,149.72,149.67,11.88927093]
[1745664437848,7.20517093,149.72,149.67,5.21027093]
[1745664438251,6.6782,149.7,149.67,5.21027093]
[1745664438852,6.6783,149.69,149.67,5.21027093]
[1745664442454,6.678,149.7,149.67,5.21027093]
[1745664442654,7.20517093,149.72,149.67,5.21027093]
[1745664442853,5.21027093,149.7,149.66,5.21027093]
[1745664443054,5.21027093,149.69,149.64,24.22]
[1745664443251,5.21027093,149.68,149.64,29.43027093]
[1745664443757,6.6793,149.67,149.64,29.43027093]
[1745664444456,6.6793,149.67,149.65,5.21027093]
[1745664444859,6.6796,149.66,149.64,29.43027093]
[1745664445058,5.21027093,149.67,149.64,24.22]
[1745664445259,5.21027093,149.67,149.63,5.21027093]
[1745664446459,6.6805,149.64,149.62,5.21027093]
[1745664447752,5.21027093,149.65,149.61,29.41027093]
[1745664447958,5.21027093,149.65,149.61,24.2]
[1745664448461,6.6814,149.62,149.61,24.2]
[1745664448662,5.21027093,149.65,149.61,24.2]
[1745664449056,6.6806,149.64,149.61,29.41027093]
[1745664449254,5.21027093,149.65,149.61,29.41027093]
[1745664451566,6.6812,149.63,149.61,29.41027093]
[1745664452267,6.6812,149.63,149.62,5.21027093]
[1745664455269,6.6814,149.62,149.61,29.41027093]
[1745664457965,6.6814,149.62,149.61,24.2]
[1745664467675,6.6814,149.62,149.61,29.41027093]
[1745664469577,6.6814,149.62,149.61,24.2]
[1745664469874,6.6823,149.61,149.59,5.21027093]
[1745664470478,6.6823,149.6,149.59,5.21027093]
[1745664470976,6.682,149.61,149.59,5.21027093]
[1745664472076,6.682,149.61,149.58,24.2]
[1745664472077,5.21027093,149.63,149.58,24.2]
[1745664472374,5.21027093,149.61,149.58,29.41027093]
[1745664472574,24.2,149.65,149.58,29.41027093]
[1745664472575,5.21027093,149.62,149.58,29.41027093]
[1745664472777,5.21027093,149.63,149.58,29.41027093]
[1745664472973,5.21027093,149.62,149.58,24.2]
[1745664473176,5.21027093,149.6,149.56,5.21027093]
[1745664473477,6.683,149.59,149.56,5.21027093]
[1745664473976,6.6832,149.58,149.56,5.21027093]
[1745664476283,5.21027093,149.59,149.55,7.21577093]
[1745664476480,5.21027093,149.58,149.54,29.41027093]
[1745664476982,5.21027093,149.58,149.54,24.2]
[1745664477780,6.6844,149.56,149.54,24.2]
[1745664478287,6.6845,149.55,149.54,24.2]
[1745664479085,6.6843,149.56,149.54,24.2]
[1745664481188,6.6845,149.55,149.54,24.2]
[1745664484591,6.6841,149.56,149.54,24.2]
[1745664485588,6.6845,149.55,149.54,24.2]
[1745664489792,6.6842,149.56,149.54,24.2]
[1745664493196,6.6845,149.55,149.54,24.2]
[1745664493997,5.21027093,149.56,149.54,24.2]
[1745664495296,6.6845,149.55,149.54,24.2]
[1745664498498,11.89447093,149.56,149.54,24.2]
[1745664498994,6.6842,149.56,149.54,24.2]
[1745664499298,5.21027093,149.57,149.54,24.2]
[1745664499897,6.6845,149.55,149.54,24.2]
[1745664500097,11.89477093,149.55,149.54,24.2]
[1745664500300,5.21027093,149.55,149.5,24.2]
[1745664500498,5.21027093,149.53,149.5,24.2]
[1745664501197,5.21027093,149.52,149.5,24.2]
[1745664501500,6.6863,149.51,149.5,24.2]
[1745664502700,11.89627093,149.52,149.5,24.2]
[1745664503500,6.6863,149.51,149.5,24.2]
[1745664503701,11.89657093,149.51,149.5,24.2]
[1745664504397,6.6872,149.49,149.47,24.2]
[1745664506598,6.6872,149.49,149.47,29.41027093]
[1745664510005,6.6877,149.48,149.47,24.2]
[1745664511305,6.6874,149.49,149.47,24.2]
[1745664514304,6.6877,149.48,149.47,24.2]
[1745664519117,11.89767093,149.49,149.47,24.2]
[1745664520317,6.6874,149.49,149.47,24.2]
[1745664520818,5.21027093,149.49,149.47,24.2]
[1745664521619,11.89767093,149.49,149.47,24.2]
[1745664522619,5.21027093,149.48,149.47,24.2]
[1745664523019,11.89797093,149.48,149.47,24.2]
[1745664540621,6.689,149.45,149.44,24.18]
[1745664540821,11.89927093,149.45,149.44,24.18]
[1745664542427,5.21027093,149.45,149.41,24.18]
[1745664542624,5.21027093,149.42,149.41,24.18]
[1745664543122,11.90067093,149.42,149.39,481.42]
[1745664543320,5.21027093,149.4,149.39,505.6]
[1745664543520,5.21027093,149.4,149.34,2.0159]
[1745664543521,5.21027093,149.4,149.38,24.18]
[1745664543724,11.90197093,149.39,149.38,24.18]
[1745664543929,5.21027093,149.39,149.36,24.18]
[1745664544123,24.18,149.45,149.34,9.32057093]
[1745664544124,5.21027093,149.38,149.34,9.32057093]
[1745664544323,5.21027093,149.37,149.35,24.18]
[1745664544626,5.21027093,149.36,149.34,26.2744]
[1745664544928,11.90367093,149.36,149.34,24.18]
[1745664545127,5.21027093,149.36,149.34,24.18]
[1745664545629,6.6929,149.37,149.34,24.18]
[1745664546227,6.6932,149.36,149.34,24.18]
[1745664546624,5.21027093,149.38,149.34,24.18]
[1745664547329,6.6929,149.37,149.34,24.18]
[1745664550228,6.6931,149.36,149.34,24.18]
[1745664550433,6.6931,149.36,149.33,5.21027093]
[1745664550633,6.6931,149.36,149.33,29.41027093]
[1745664551631,11.90297093,149.37,149.33,29.41027093]
[1745664552835,6.6931,149.36,149.33,29.41027093]
[1745664554735,11.90297093,149.37,149.33,29.41027093]
[1745664554937,11.90297093,149.37,149.34,5.21027093]
[1745664555235,6.6927,149.37,149.34,5.21027093]
[1745664555931,5.21027093,149.38,149.34,5.21027093]
[1745664556136,5.21027093,149.4,149.36,5.21027093]
[1745664556337,5.21027093,149.4,149.33,24.2]
[1745664556539,6.6921,149.39,149.35,5.21027093]
[1745664556733,5.21027093,149.4,149.35,5.21027093]
[1745664558238,6.6923,149.38,149.35,5.21027093]
[1745664558436,5.21027093,149.4,149.36,5.21027093]
[1745664558733,6.692,149.39,149.36,5.21027093]
[1745664559438,6.6923,149.38,149.36,5.21027093]
[1745664559842,6.6923,149.38,149.35,5.21027093]
[1745664562747,6.6918,149.39,149.35,5.21027093]
[1745664562956,6.6918,149.39,149.36,5.21027093]
[1745664564642,6.6922,149.38,149.35,5.21027093]
[1745664566950,5.21027093,149.37,149.33,24.2]
[1745664567243,28.2258,149.44,149.33,24.2]
[1745664567444,6.6939,149.34,149.3,3.9999]
[1745664567650,5.21027093,149.36,149.32,5.21027093]
[1745664567846,5.21027093,149.35,149.31,5.21027093]
[1745664568146,6.6944,149.33,149.3,29.41027093]
[1745664568948,11.90437093,149.34,149.3,29.41027093]
[1745664569749,11.90437093,149.34,149.31,5.21027093]
[1745664570346,6.6941,149.34,149.31,5.21027093]
[1745664570542,11.90387093,149.35,149.3,24.2]
[1745664570748,5.21027093,149.37,149.33,5.21027093]
[1745664570948,9.26047093,149.38,149.34,5.21027093]
[1745664571351,6.6931,149.36,149.34,5.21027093]
[1745664572554,6.6931,149.36,149.33,5.21027093]
[1745664573853,6.6936,149.35,149.33,5.21027093]
[1745664575254,6.6936,149.35,149.32,5.21027093]
[1745664575553,6.694,149.34,149.32,5.21027093]
[1745664576153,6.694,149.34,149.31,5.21027093]
[1745664576453,6.6944,149.33,149.31,5.21027093]
[1745664576654,6.6944,149.33,149.3,29.41027093]
[1745664577255,5.21027093,149.35,149.3,29.41027093]
[1745664577855,6.694,149.34,149.31,5.21027093]
[1745664578954,6.694,149.34,149.32,5.21027093]
[1745664579156,6.6944,149.33,149.32,5.21027093]
[1745664580760,6.6944,149.33,149.3,24.2]
[1745664581057,5.21027093,149.35,149.3,29.41027093]
[1745664581258,5.21027093,149.35,149.31,5.21027093]
[1745664581961,6.6948,149.32,149.31,5.21027093]
[1745664582155,5.21027093,149.35,149.31,5.21027093]
[1745664582555,6.6946,149.33,149.31,5.21027093]
[1745664582860,6.6946,149.33,149.32,5.21027093]
[1745664587765,6.6941,149.34,149.32,5.21027093]
[1745664589265,5.21027093,149.36,149.32,5.21027093]
[1745664589867,6.6943,149.34,149.32,5.21027093]
[1745664590068,5.21027093,149.36,149.32,5.21027093]
[1745664591169,6.6943,149.34,149.32,5.21027093]
[1745664592466,6.6937,149.35,149.33,5.21027093]
[1745664592666,6.6937,149.35,149.34,29.41027093]
[1745664593569,6.6937,149.35,149.34,24.2]
[1745664599769,5.21027093,149.35,149.32,24.2]
[1745664600072,5.21027093,149.34,149.32,24.2]
[1745664600275,5.21027093,149.34,149.3,5.21027093]
[1745664600470,5.21027093,149.34,149.31,24.2]
[1745664601074,5.21027093,149.35,149.31,24.2]
[1745664602273,5.21027093,149.34,149.31,24.2]
[1745664602974,6.6948,149.32,149.31,24.2]
[1745664605576,6.1469,149.38,149.31,29.41027093]
[1745664605780,5.21027093,149.36,149.32,5.21027093]
[1745664606076,5.21027093,149.37,149.32,5.21027093]
[1745664606274,5.21027093,149.37,149.33,5.21027093]
[1745664606473,5.21027093,149.37,149.32,5.21027093]
[1745664607376,6.6948,149.32,149.31,29.41027093]
[1745664607675,6.6948,149.32,149.31,24.2]
[1745664610275,6.6953,149.31,149.3,5.21027093]
[1745664610476,6.6953,149.31,149.3,29.41027093]
[1745664610676,6.6953,149.31,149.3,5.21027093]
[1745664610882,6.6953,149.31,149.3,29.41027093]
[1745664613085,6.6953,149.31,149.3,5.21027093]
[1745664613285,6.6953,149.31,149.3,29.41027093]
[1745664618889,6.6953,149.31,149.3,24.2]
[1745664619387,6.6949,149.32,149.3,29.41027093]
[1745664619694,6.6949,149.32,149.31,5.21027093]
[1745664619887,6.6949,149.32,149.3,29.41027093]
[1745664620088,6.6953,149.31,149.3,24.2]
[1745664620994,6.6957,149.3,149.29,5.21027093]
[1745664621188,5.21027093,149.33,149.29,29.41027093]
[1745664621491,5.21027093,149.34,149.29,29.41027093]
[1745664621991,6.6954,149.31,149.29,29.41027093]
[1745664622490,6.1469,149.38,149.3,5.21027093]
[1745664622693,2.06,149.38,149.36,5.21027093]
[1745664622991,5.21027093,149.41,149.36,5.21027093]
[1745664623184,5.21027093,149.41,149.37,5.21027093]
[1745664623393,6.6928,149.37,149.36,5.21027093]
[1745664623691,5.21027093,149.39,149.35,29.41027093]
[1745664623886,6.693,149.36,149.35,29.41027093]
[1745664624085,6.693,149.36,149.35,24.2]
[1745664624494,6.6948,149.32,149.31,5.21027093]
[1745664624695,6.6948,149.32,149.31,24.2]
[1745664625698,6.6945,149.33,149.31,29.41027093]
[1745664625993,5.21027093,149.36,149.32,5.21027093]
[1745664626194,5.21027093,149.36,149.31,29.41027093]
[1745664626488,5.21027093,149.35,149.31,29.41027093]
[1745664626695,6.6948,149.32,149.31,29.41027093]
[1745664628296,6.6948,149.32,149.31,24.2]
[1745664628795,5.21027093,149.34,149.3,24.2]
[1745664628996,5.21027093,149.33,149.3,24.2]
[1745664629399,6.6953,149.31,149.3,24.2]
[1745664630696,11.90557093,149.31,149.3,24.2]
[1745664630996,5.21027093,149.29,149.27,24.18]
[1745664631196,5.21027093,149.28,149.24,5.21027093]
[1745664631396,6.698,149.25,149.24,29.39027093]
[1745664631700,6.698,149.25,149.24,24.18]
[1745664633199,6.698,149.25,149.24,29.39027093]
[1745664633390,5.21027093,149.3,149.24,29.39027093]
[1745664633594,5.21027093,149.32,149.28,5.21027093]
[1745664633798,5.21027093,149.33,149.28,5.21027093]
[1745664634001,5.21027093,149.34,149.3,5.21027093]
[1745664634394,6.6953,149.31,149.3,5.21027093]
[1745664634590,5.21027093,149.34,149.29,5.21027093]
[1745664635294,5.21027093,149.32,149.28,24.18]
[1745664635997,6.6966,149.28,149.27,5.21027093]
[1745664636202,6.6966,149.28,149.27,24.18]
[1745664638205,6.6966,149.28,149.27,29.39027093]
[1745664639907,6.6966,149.28,149.27,24.18]
[1745664641104,6.6966,149.28,149.27,29.39027093]
[1745664642305,6.6966,149.28,149.27,24.18]
[1745664644007,6.6975,149.26,149.25,5.21027093]
[1745664644302,5.21027093,149.27,149.25,24.2]
[1745664644496,5.21027093,149.26,149.22,29.41027093]
[1745664644701,5.9999,149.35,149.22,24.2]
[1745664644702,5.21027093,149.25,149.22,24.2]
[1745664645100,6.6989,149.23,149.22,24.2]
[1745664645708,11.90917093,149.23,149.22,24.2]
[1745664645908,5.21027093,149.23,149.19,24.2]
[1745664646112,5.21027093,149.23,149.19,29.41027093]
[1745664646504,6.7002,149.2,149.19,29.41027093]
[1745664647108,6.7002,149.2,149.19,5.21027093]
[1745664647410,6.7002,149.2,149.18,29.41027093]
[1745664647611,6.7007,149.19,149.18,24.2]
[1745664652708,6.7004,149.2,149.18,29.41027093]
[1745664652913,5.21027093,149.24,149.19,5.21027093]
[1745664653106,5.21027093,149.24,149.2,5.21027093]
[1745664653310,6.6998,149.21,149.2,5.21027093]
[1745664654314,6.6998,149.21,149.19,5.21027093]
[1745664655423,6.6995,149.22,149.19,5.21027093]
[1745664655720,5.21027093,149.24,149.19,5.21027093]
[1745664656718,6.7001,149.21,149.19,5.21027093]
[1745664657417,6.7002,149.2,149.19,5.21027093]
[1745664658023,6.7002,149.2,149.18,29.41027093]
[1745664658319,6.7007,149.19,149.18,29.41027093]